[Event "SWE-ch Masters Elite 2018"]
[Site "Ronneby"]
[Date "2018.07.03"]
[Round "4"]
[White "Logdahl, Harald"]
[Black "Furhoff, Johan"]
[Result "1/2-1/2"]
[ECO "B23"]
[WhiteElo "2249"]
[BlackElo "2332"]
[Annotator "NA"]
[PlyCount "40"]
[EventDate "2018.06.30"]
[EventType "tourn"]
[EventCountry "SWE"]
[SourceTitle "playchess.com"]
[Source "ChessBase"]
[SourceQuality "1"]
[TimeControl "40/5400+30:1800+30"]

1. e4 {[%emt 0:00:00]} e5 {[%emt 0:00:00]} 2. Nc3 {[%emt 0:00:00]} Nf6 {[%emt 0:00:00]} 3. g3 {[%emt 0:00:09]} d5 {[%emt 0:00:19]} 4. exd5 {[%emt 0:00:33]} c6 {[%emt 0:00:19]} 5. d4 {[%emt 0:15:50]} exd4 {[%emt 0:02:01]} 6. Qxd4 {[%emt 0:00:07]} cxd5 {[%emt 0:00:48]} 7. Bg5 {[%emt 0:06:16]} Be7 {[%emt 0:10:29] LiveBook: 34 Games} 8. Bg2 $11 {[%emt 0:01:24]} Nc6 {[%emt 0:02:57]} 9. Qd2 {[%emt 0:01:44]} d4 {[%emt 0:03:40]} 10. Bxf6 {[%emt 0:05:52]} Bxf6 {[%emt 0:03:25]} 11. Nd5 {[%emt 0:00:40]} O-O {[%emt 0:01:46]} 12. Ne2 {[%emt 0:03:24]} Be6 {[%emt 0:08:50]} 13. Nxf6+ {[%emt 0:02:36]} Qxf6 {[%emt 0:04:32]} 14. O-O {[%emt 0:01:51]} Rad8 {[%emt 0:03:36]} 15. Nf4 {[%emt 0:03:25]} Ne5 {[%emt 0:06:45]} 16. Nxe6 {[%emt 0:08:30]} fxe6 {[%emt 0:02:25]} 17. Qa5 {[%emt 0:05:37]} Nf3+ {[%emt 0:09:19]} 18. Bxf3 {[%emt 0:03:49]} Qxf3 {[%emt 0:00:04]} 19. Rae1 {[%emt 0:15:47]} Qf5 {[%emt 0:11:42]} 20. Qxf5 {[%emt 0:05:07]} exf5 {[%emt 0:00:23]} 1/2-1/2

[Event "SWE-ch Masters Elite 2018"]
[Site "Ronneby"]
[Date "2018.07.03"]
[Round "4"]
[White "Lind, Jan-Olov"]
[Black "Ziegler, Ari"]
[Result "0-1"]
[ECO "A00"]
[WhiteElo "2234"]
[BlackElo "2305"]
[Annotator "NA"]
[PlyCount "116"]
[EventDate "2018.06.30"]
[EventType "tourn"]
[EventCountry "SWE"]
[SourceTitle "playchess.com"]
[Source "ChessBase"]
[SourceQuality "1"]
[TimeControl "40/5400+30:1800+30"]

1. e4 {[%emt 0:00:00]} c6 {[%emt 0:00:00]} 2. d3 {[%emt 0:01:17]} d5 {[%emt 0:00:00]} 3. Nd2 {[%emt 0:00:05]} e5 {[%emt 0:00:00]} 4. Ngf3 {[%emt 0:00:06]} Nd7 {[%emt 0:00:00]} 5. g3 {[%emt 0:00:11]} Ngf6 {[%emt 0:00:00]} 6. Bg2 {[%emt 0:00:23]} Bc5 {[%emt 0:00:00]} 7. O-O {[%emt 0:00:40]} O-O {[%emt 0:00:04]} 8. a3 {[%emt 0:01:46]} a5 {[%emt 0:00:40]} 9. b3 {[%emt 0:01:38]} Re8 {[%emt 0:00:19]} 10. Bb2 {[%emt 0:00:31]} h6 {[%emt 0:06:23]} 11. exd5 {[%emt 0:12:50]} cxd5 {[%emt 0:00:09]} 12. d4 {[%emt 0:06:02]} exd4 {[%emt 0:04:07]} 13. Nxd4 $15 {[%emt 0:06:02]} Ne5 {[%emt 0:02:07]} 14. h3 {[%emt 0:16:46]} Qb6 {[%emt 0:04:50]} 15. N2f3 {[%emt 0:04:20]} Nxf3+ {[%emt 0:02:30]} 16. Nxf3 {[%emt 0:00:40]} Ne4 {[%emt 0:15:35]} 17. Bd4 {[%emt 0:02:34]} Bf5 {[%emt 0:04:11]} 18. a4 {[%emt 0:01:45]} Rac8 {[%emt 0:02:41]} 19. Bxc5 {[%emt 0:02:43]} Qxc5 {[%emt 0:00:10]} 20. Qd4 {[%emt 0:02:04]} Nc3 {[%emt 0:11:48]} 21. Qxc5 {[%emt 0:03:23]} Rxc5 {[%emt 0:00:20]} 22. Nd4 {[%emt 0:02:44]} Bxc2 {[%emt 0:05:39]} 23. Rfe1 {[%emt 0:08:00]} Rxe1+ {[%emt 0:00:28]} 24. Rxe1 {[%emt 0:00:07]} Be4 {[%emt 0:00:05]} 25. f3 {[%emt 0:06:25]} Bd3 {[%emt 0:05:57]} 26. Re8+ {[%emt 0:02:59]} Kh7 {[%emt 0:00:06]} 27. Re7 {[%emt 0:01:58]} b5 {[%emt 0:00:17]} 28. Rxf7 {[%emt 0:01:01]} bxa4 {[%emt 0:00:08]} 29. bxa4 {[%emt 0:00:17]} Nxa4 {[%emt 0:01:18]} 30. Kf2 {[%emt 0:04:23]} Kg6 {[%emt 0:04:34]} 31. Ra7 {[%emt 0:00:17]} Kf6 {[%emt 0:02:23]} 32. Ke3 {[%emt 0:01:13]} Rc3 {[%emt 0:03:31]} 33. Rxa5 {[%emt 0:04:51]} Bc4+ {[%emt 0:00:08]} 34. Kf2 {[%emt 0:01:42]} Nb2 {[%emt 0:01:09]} 35. f4 {[%emt 0:02:22]} Nd1+ {[%emt 0:04:08]} 36. Ke1 {[%emt 0:01:12]} Ne3 {[%emt 0:00:27]} 37. Bf3 {[%emt 0:01:21]} Nc2+ {[%emt 0:15:17]} 38. Nxc2 {[%emt 0:00:07]} Rxf3 {[%emt 0:00:04]} 39. Ra3 {[%emt 0:01:18]} Rxa3 {[%emt 0:00:15]} 40. Nxa3 {[%emt 0:00:06]} Kf5 {[%emt 0:00:12]} 41. Nc2 {[%emt 0:04:50]} Ke4 {[%emt 0:00:32]} 42. Kf2 {[%emt 0:03:58]} d4 {[%emt 0:00:13]} 43. Ne1 {[%emt 0:00:42]} Be6 {[%emt 0:00:39]} 44. g4 {[%emt 0:21:05]} Kxf4 {[%emt 0:00:10]} 45. Nd3+ {[%emt 0:00:18]} Ke4 {[%emt 0:00:44]} 46. Nc5+ {[%emt 0:00:14]} Kd5 {[%emt 0:00:57]} 47. Nd3 {[%emt 0:00:23]} Bf7 {[%emt 0:03:24]} 48. Kf3 {[%emt 0:01:23]} g5 {[%emt 0:00:31]} 49. Nb4+ {[%emt 0:02:32]} Kc4 {[%emt 0:06:11]} 50. Ke4 {[%emt 0:00:09]} Be8 {[%emt 0:08:05]} 51. Ke5 {[%emt 0:00:23]} Ba4 {[%emt 0:05:35]} 52. Nd5 {[%emt 0:01:14]} Bc6 {[%emt 0:01:07]} 53. Ne7 {[%emt 0:00:29]} d3 {[%emt 0:02:16]} 54. Nf5 {[%emt 0:00:09]} d2 {[%emt 0:00:20]} 55. Ne3+ {[%emt 0:00:20]} Kd3 {[%emt 0:00:10]} 56. Nd1 {[%emt 0:00:19]} Bf3 {[%emt 0:01:26]} 57. Nb2+ {[%emt 0:00:25]} Kc3 {[%emt 0:00:11]} 58. Na4+ {[%emt 0:00:41]} Kc2 {[%emt 0:00:24]} 0-1

[Event "SWE-ch Masters Elite 2018"]
[Site "Ronneby"]
[Date "2018.07.04"]
[Round "5"]
[White "Malmstig, Erik"]
[Black "Logdahl, Harald"]
[Result "0-1"]
[ECO "A21"]
[WhiteElo "2336"]
[BlackElo "2249"]
[Annotator "NA"]
[PlyCount "54"]
[EventDate "2018.06.30"]
[EventType "tourn"]
[EventCountry "SWE"]
[SourceTitle "playchess.com"]
[Source "ChessBase"]
[SourceQuality "1"]
[TimeControl "40/5400+30:1800+30"]

1. c4 {[%emt 0:01:01]} e5 {[%emt 0:01:50]} 2. Nc3 {[%emt 0:00:33]} Bb4 {[%emt 0:00:30]} 3. Nd5 {[%emt 0:00:14]} Be7 {[%emt 0:00:18]} 4. e3 {[%emt 0:00:20]} Nf6 {[%emt 0:00:44]} 5. Ne2 {[%emt 0:01:13]} Nxd5 {[%emt 0:01:03]} 6. cxd5 {[%emt 0:00:08]} O-O {[%emt 0:01:05]} 7. Nc3 {[%emt 0:00:27]} c5 {[%emt 0:02:33]} 8. Be2 {[%emt 0:03:40]} d6 {[%emt 0:00:23]} 9. O-O {[%emt 0:00:32]} Na6 {[%emt 0:08:50]} 10. a4 {[%emt 0:14:10]} Nc7 {[%emt 0:05:59]} 11. Bc4 {[%emt 0:04:23]} a6 {[%emt 0:01:00]} 12. d4 {[%emt 0:01:42]} exd4 {[%emt 0:07:48]} 13. exd4 {[%emt 0:00:53]} b6 {[%emt 0:00:15]} 14. Bf4 {[%emt 0:05:01]} Rb8 {[%emt 0:04:13]} 15. Ba2 {[%emt 0:14:09]} Bf5 {[%emt 0:10:59]} 16. Qd2 {[%emt 0:16:21]} Bf6 {[%emt 0:11:07]} 17. Be3 {[%emt 0:01:33]} Re8 {[%emt 0:12:24]} 18. Rfd1 {[%emt 0:05:23]} h6 {[%emt 0:03:37]} 19. Rac1 {[%emt 0:04:18]} Bg5 {[%emt 0:05:40]} 20. Bf4 {[%emt 0:09:10]} Qf6 {[%emt 0:04:09]} 21. a5 {[%emt 0:04:17]} Nb5 {[%emt 0:06:18]} 22. Nxb5 {[%emt 0:02:26]} axb5 {[%emt 0:00:18]} 23. axb6 {[%emt 0:01:27]} cxd4 {[%emt 0:04:09]} 24. Bxg5 {[%emt 0:02:13]} hxg5 {[%emt 0:00:05]} 25. Qa5 {[%emt 0:02:15]} d3 {[%emt 0:03:29]} 26. Qxb5 {[%emt 0:01:31]} Re2 {[%emt 0:00:17]} 27. Bb3 {[%emt 0:02:36]} Bd7 {[%emt 0:01:09]} 0-1

[Event "SWE-ch Masters Elite 2018"]
[Site "Ronneby"]
[Date "2018.07.04"]
[Round "5"]
[White "Furhoff, Johan"]
[Black "Lind, Jan-Olov"]
[Result "0-1"]
[ECO "B06"]
[WhiteElo "2332"]
[BlackElo "2234"]
[Annotator "NA"]
[PlyCount "62"]
[EventDate "2018.06.30"]
[EventType "tourn"]
[EventCountry "SWE"]
[SourceTitle "playchess.com"]
[Source "ChessBase"]
[SourceQuality "1"]
[TimeControl "40/5400+30:1800+30"]

1. e4 {[%emt 0:00:00]} g6 {[%emt 0:00:00]} 2. d4 {[%emt 0:00:30]} Bg7 {[%emt 0:00:30]} 3. Nc3 {[%emt 0:00:30]} d6 {[%emt 0:00:30]} 4. f4 {[%emt 0:00:30]} a6 {[%emt 0:00:30]} 5. Nf3 {[%emt 0:00:30]} b5 {[%emt 0:00:30]} 6. Bd3 {[%emt 0:00:30]} Nd7 {[%emt 0:00:30]} 7. e5 {[%emt 0:05:52]} c5 {[%emt 0:00:00]} 8. Be4 {[%emt 0:01:24]} Rb8 {[%emt 0:00:00]} 9. Be3 {[%emt 0:05:41]} Nh6 {[%emt 0:18:40]} 10. dxc5 {[%emt 0:10:04]} b4 {[%emt 0:11:38]} 11. Nd5 {[%emt 0:05:42]} Nxc5 {[%emt 0:02:37]} 12. Bxc5 {[%emt 0:04:43]} dxc5 {[%emt 0:00:31]} 13. O-O {[%emt 0:02:29]} O-O {[%emt 0:01:07]} 14. Qe2 {[%emt 0:06:12]} Qd7 {[%emt 0:02:19]} 15. Rad1 {[%emt 0:08:56]} Qa7 {[%emt 0:00:32]} 16. h3 {[%emt 0:01:30]} Kh8 {[%emt 0:10:23]} 17. Kh2 {[%emt 0:08:53]} f6 {[%emt 0:07:22]} 18. Bd3 {[%emt 0:04:59]} Bb7 {[%emt 0:09:42]} 19. Bc4 {[%emt 0:01:12]} Rbd8 {[%emt 0:06:15]} 20. g4 {[%emt 0:12:50]} Qb8 {[%emt 0:09:22]} 21. Nxe7 {[%emt 0:12:02]} Rxd1 {[%emt 0:01:56]} 22. Rxd1 {[%emt 0:01:06]} fxe5 {[%emt 0:01:16]} 23. Nxe5 {[%emt 0:02:25]} Rxf4 {[%emt 0:02:45]} 24. Rd8+ {[%emt 0:01:29]} Qxd8 {[%emt 0:00:14]} 25. N7xg6+ {[%emt 0:00:06]} hxg6 {[%emt 0:00:16]} 26. Nxg6+ {[%emt 0:00:06]} Kh7 {[%emt 0:00:25]} 27. Nxf4 {[%emt 0:00:06]} Qd6 {[%emt 0:05:51]} 28. Qd3+ {[%emt 0:01:11]} Qxd3 {[%emt 0:00:09]} 29. Nxd3 {[%emt 0:00:07]} Bf8 {[%emt 0:01:03]} 30. Kg3 {[%emt 0:00:19]} Bd6+ {[%emt 0:00:15]} 31. Kh4 {[%emt 0:00:48]} Kg6 {[%emt 0:01:03]} 0-1

[Event "SWE-ch Masters Elite 2018"]
[Site "Ronneby"]
[Date "2018.07.04"]
[Round "5"]
[White "Rydstrom, Tom"]
[Black "Lundin, Jan"]
[Result "1/2-1/2"]
[ECO "B81"]
[WhiteElo "2307"]
[BlackElo "2282"]
[Annotator "NA"]
[PlyCount "108"]
[EventDate "2018.06.30"]
[EventType "tourn"]
[EventCountry "SWE"]
[SourceTitle "playchess.com"]
[Source "ChessBase"]
[SourceQuality "1"]
[TimeControl "40/5400+30:1800+30"]

1. e4 {[%emt 0:00:00]} c5 {[%emt 0:01:17]} 2. Nf3 {[%emt 0:00:00]} e6 {[%emt 0:00:04]} 3. d4 {[%emt 0:00:00]} cxd4 {[%emt 0:00:06]} 4. Nxd4 {[%emt 0:00:00]} Nf6 {[%emt 0:00:03]} 5. Nc3 {[%emt 0:00:04]} d6 {[%emt 0:00:04]} 6. g4 {[%emt 0:00:51]} e5 {[%emt 0:03:03]} 7. Nf5 {[%emt 0:02:30]} h5 {[%emt 0:03:41]} 8. g5 {[%emt 0:04:14]} Nxe4 {[%emt 0:01:46]} 9. Nxg7+ {[%emt 0:01:56]} Bxg7 {[%emt 0:00:11]} 10. Nxe4 {[%emt 0:00:03]} d5 {[%emt 0:00:28]} 11. Ng3 {[%emt 0:01:04]} Bg4 {[%emt 0:02:07]} 12. Be2 {[%emt 0:03:15]} Nc6 {[%emt 0:08:46]} 13. Bxg4 {[%emt 0:02:57]} hxg4 {[%emt 0:00:09]} 14. Nf5 {[%emt 0:01:36]} Qd7 {[%emt 0:02:09]} 15. Qxg4 {[%emt 0:07:59]} Kf8 {[%emt 0:12:52]} 16. Bd2 {[%emt 0:03:40]} a5 {[%emt 0:03:42]} 17. Qf3 {[%emt 0:02:25]} e4 {[%emt 0:06:06]} 18. Qa3+ {[%emt 0:00:09]} Kg8 {[%emt 0:00:11]} 19. Nxg7 {[%emt 0:05:44]} Qg4 {[%emt 0:05:52]} 20. Qg3 {[%emt 0:17:49]} Qxg3 {[%emt 0:01:32]} 21. fxg3 {[%emt 0:00:02]} Kxg7 {[%emt 0:00:34]} 22. c3 {[%emt 0:05:00]} Ne5 {[%emt 0:13:02]} 23. Be3 {[%emt 0:06:00]} Nf3+ {[%emt 0:06:10]} 24. Ke2 {[%emt 0:00:25]} Rxh2+ {[%emt 0:00:15]} 25. Rxh2 {[%emt 0:00:05]} Nxh2 {[%emt 0:00:08]} 26. Rd1 {[%emt 0:00:15]} Ng4 {[%emt 0:05:38]} 27. Rxd5 {[%emt 0:00:52]} Kg6 {[%emt 0:00:55]} 28. Bd4 {[%emt 0:04:02]} a4 {[%emt 0:00:24]} 29. Rb5 {[%emt 0:02:37]} b6 {[%emt 0:03:50]} 30. Bf6 {[%emt 0:08:28]} Nxf6 {[%emt 0:04:25]} 31. gxf6 {[%emt 0:00:02]} Kxf6 {[%emt 0:00:10]} 32. Rxb6+ {[%emt 0:00:08]} Kg5 {[%emt 0:00:17]} 33. b4 {[%emt 0:11:41]} f5 {[%emt 0:08:48]} 34. c4 {[%emt 0:00:15]} Rh8 {[%emt 0:00:20]} 35. c5 {[%emt 0:01:21]} Rh2+ {[%emt 0:00:23]} 36. Ke3 {[%emt 0:00:25]} Rxa2 {[%emt 0:01:23]} 37. c6 {[%emt 0:03:05]} Rc2 {[%emt 0:00:29]} 38. b5 {[%emt 0:00:11]} a3 {[%emt 0:03:32]} 39. Ra6 {[%emt 0:00:50]} a2 {[%emt 0:02:39]} 40. Rxa2 {[%emt 0:01:53]} Rxa2 {[%emt 0:00:44]} 41. c7 {[%emt 0:30:11]} Rc2 {[%emt 0:01:48]} 42. b6 {[%emt 0:00:00]} Kg4 {[%emt 0:03:43]} 43. Kd4 {[%emt 0:00:00]} f4 {[%emt 0:16:22]} 44. gxf4 {[%emt 0:00:00]} Kf3 {[%emt 0:00:32]} 45. b7 {[%emt 0:00:00]} Rxc7 {[%emt 0:00:12]} 46. b8=Q {[%emt 0:00:00]} Rd7+ {[%emt 0:00:08]} 47. Kc4 {[%emt 0:00:00]} e3 {[%emt 0:00:14]} 48. Qa8+ {[%emt 0:05:15]} Kf2 {[%emt 0:01:39]} 49. Qh1 {[%emt 0:03:29]} e2 {[%emt 0:03:29]} 50. Qh4+ {[%emt 0:00:03]} Kf3 {[%emt 0:01:29]} 51. Qh3+ {[%emt 0:01:56]} Kxf4 {[%emt 0:01:18]} 52. Qxd7 {[%emt 0:00:19]} e1=Q {[%emt 0:00:13]} 53. Qd4+ {[%emt 0:00:06]} Qe4 {[%emt 0:00:10]} 54. Qxe4+ {[%emt 0:00:02]} Kxe4 {[%emt 0:00:10]} 1/2-1/2

[Event "SWE-ch Masters Elite 2018"]
[Site "Ronneby"]
[Date "2018.07.04"]
[Round "5"]
[White "Ziegler, Ari"]
[Black "Lindh, Fredrik"]
[Result "1/2-1/2"]
[ECO "B31"]
[WhiteElo "2305"]
[BlackElo "2273"]
[Annotator "NA"]
[PlyCount "119"]
[EventDate "2018.06.30"]
[EventType "tourn"]
[EventCountry "SWE"]
[SourceTitle "playchess.com"]
[Source "ChessBase"]
[SourceQuality "1"]
[TimeControl "40/5400+30:1800+30"]

1. e4 {[%emt 0:00:16]} c5 {[%emt 0:00:00]} 2. Nf3 {[%emt 0:00:05]} Nc6 {[%emt 0:00:00]} 3. Bb5 {[%emt 0:00:05]} g6 {[%emt 0:00:14]} 4. Bxc6 {[%emt 0:00:07]} bxc6 {[%emt 0:00:04]} 5. O-O {[%emt 0:00:10]} Bg7 {[%emt 0:00:11]} 6. Re1 {[%emt 0:00:06]} Nh6 {[%emt 0:00:25]} 7. c3 {[%emt 0:00:08]} O-O {[%emt 0:00:09]} 8. d4 {[%emt 0:00:15]} cxd4 {[%emt 0:00:11]} 9. cxd4 {[%emt 0:00:05]} d5 {[%emt 0:00:17]} 10. e5 {[%emt 0:00:08]} f6 {[%emt 0:00:10]} 11. h3 {[%emt 0:07:27]} fxe5 {[%emt 0:06:49]} 12. Nxe5 {[%emt 0:00:44]} Qb6 {[%emt 0:01:06]} 13. Bxh6 {[%emt 0:22:25]} Bxh6 {[%emt 0:01:52]} 14. Re2 {[%emt 0:02:54]} Rf4 {[%emt 0:48:40]} 15. Rd2 {[%emt 0:01:11]} Rh4 {[%emt 0:00:19]} 16. Nf3 {[%emt 0:09:46]} Bxd2 {[%emt 0:01:34]} 17. Qxd2 {[%emt 0:01:56]} Rh5 {[%emt 0:08:57]} 18. Nc3 {[%emt 0:00:45]} Rb8 {[%emt 0:00:23]} 19. b3 {[%emt 0:00:18]} c5 {[%emt 0:04:16]} 20. dxc5 {[%emt 0:16:54]} Qxc5 {[%emt 0:00:31]} 21. Rc1 {[%emt 0:00:30]} Qd6 {[%emt 0:11:15]} 22. Qd4 {[%emt 0:04:53]} Bd7 {[%emt 0:02:40]} 23. Re1 {[%emt 0:02:18]} a5 {[%emt 0:03:07]} 24. Ne5 {[%emt 0:05:43]} Be6 {[%emt 0:00:47]} 25. Nd3 {[%emt 0:00:34]} Bf7 {[%emt 0:02:59]} 26. Re3 {[%emt 0:15:53]} Qb6 {[%emt 0:01:29]} 27. Qxb6 {[%emt 0:01:41]} Rxb6 {[%emt 0:00:04]} 28. Rxe7 {[%emt 0:00:07]} Re6 {[%emt 0:02:48]} 29. Rd7 {[%emt 0:00:41]} Re8 {[%emt 0:01:28]} 30. Nb5 {[%emt 0:03:17]} Be6 {[%emt 0:01:28]} 31. Ra7 {[%emt 0:00:48]} d4 {[%emt 0:00:37]} 32. Nc7 {[%emt 0:00:47]} Re7 {[%emt 0:00:12]} 33. Nf4 {[%emt 0:00:11]} Re5 {[%emt 0:00:39]} 34. Ra8+ {[%emt 0:00:46]} Kf7 {[%emt 0:00:28]} 35. Nfxe6 {[%emt 0:00:12]} R7xe6 {[%emt 0:00:47]} 36. Nxe6 {[%emt 0:00:08]} Re1+ {[%emt 0:00:26]} 37. Kh2 {[%emt 0:00:07]} Rxe6 {[%emt 0:00:25]} 38. Rd8 {[%emt 0:01:05]} Re2 {[%emt 0:00:23]} 39. f3 {[%emt 0:02:17]} Rxa2 {[%emt 0:00:21]} 40. Rxd4 {[%emt 0:00:09]} Ra3 {[%emt 0:00:32]} 41. Rd7+ {[%emt 0:30:37]} Kg8 {[%emt 0:30:08]} 42. Rb7 {[%emt 0:00:50]} a4 {[%emt 0:00:27]} 43. bxa4 {[%emt 0:00:55]} Rxa4 {[%emt 0:00:05]} 44. Kg3 {[%emt 0:00:08]} Ra2 {[%emt 0:00:47]} 45. f4 {[%emt 0:00:19]} Rc2 {[%emt 0:00:13]} 46. Kf3 {[%emt 0:00:14]} Ra2 {[%emt 0:00:00]} 47. g4 {[%emt 0:00:00]} Ra3+ {[%emt 0:00:00]} 48. Ke4 {[%emt 0:00:00]} Rxh3 {[%emt 0:00:00]} 49. Ke5 {[%emt 0:00:00]} Ra3 {[%emt 0:00:00]} 50. Kf6 {[%emt 0:00:00]} Ra6+ {[%emt 0:00:00]} 51. Kg5 {[%emt 0:00:00]} h5 {[%emt 0:00:00]} 52. gxh5 {[%emt 0:00:00]} gxh5 {[%emt 0:00:00]} 53. Kxh5 {[%emt 0:00:00]} Kf8 {[%emt 0:00:00]} 54. Kg5 {[%emt 0:00:00]} Kg8 {[%emt 0:00:00]} 55. f5 {[%emt 0:00:00]} Kf8 {[%emt 0:00:00]} 56. Rd7 {[%emt 0:00:00]} Rb6 {[%emt 0:00:00]} 57. Rh7 {[%emt 0:00:00]} Kg8 {[%emt 0:00:00]} 58. Re7 {[%emt 0:00:00]} Kf8 {[%emt 0:00:00]} 59. Rd7 {[%emt 0:00:00]} Ra6 {[%emt 0:00:00]} 60. Rc7 1/2-1/2

[Event "SWE-ch Masters Elite 2018"]
[Site "Ronneby"]
[Date "2018.07.04"]
[Round "5"]
[White "Landgren, Andreas"]
[Black "Wiedenkeller, Michael"]
[Result "1/2-1/2"]
[ECO "E20"]
[WhiteElo "2278"]
[BlackElo "2465"]
[Annotator "ChessBase"]
[PlyCount "48"]
[EventDate "2018.06.30"]
[EventType "tourn"]
[EventCountry "SWE"]
[SourceTitle "playchess.com"]
[Source "ChessBase"]
[SourceQuality "1"]
[TimeControl "40/5400+30:1800+30"]

1. d4 {[%emt 0:00:00]} Nf6 {[%emt 0:00:00]} 2. c4 {[%emt 0:00:00]} e6 {[%emt 0:00:13]} 3. Nc3 {[%emt 0:00:00]} Bb4 {[%emt 0:00:16]} 4. f3 {[%emt 0:00:07]} O-O {[%emt 0:01:05]} 5. e4 {[%emt 0:00:14]} d5 {[%emt 0:00:07]} 6. cxd5 {[%emt 0:00:43]} exd5 {[%emt 0:00:08]} 7. e5 {[%emt 0:00:14]} Nfd7 {[%emt 0:00:14]} 8. a3 {[%emt 0:01:12]} Bxc3+ {[%emt 0:00:36]} 9. bxc3 {[%emt 0:00:03]} f6 {[%emt 0:00:20]} 10. exf6 {[%emt 0:00:09]} Qxf6 {[%emt 0:04:56]} 11. Ne2 {[%emt 0:09:52]} Re8 {[%emt 0:13:53]} 12. Kf2 {[%emt 0:00:40]} c5 {[%emt 0:04:03]} 13. Nf4 {[%emt 0:07:45]} cxd4 {[%emt 0:16:21]} 14. Nxd5 {[%emt 0:07:25]} Qc6 {[%emt 0:16:59]} 15. Qxd4 {[%emt 0:01:41]} Nc5 {[%emt 0:00:47]} 16. Nb4 {[%emt 0:17:54]} Qb6 {[%emt 0:02:50]} 17. Be3 {[%emt 0:04:23]} Nbd7 {[%emt 0:03:06]} 18. Bc4+ {[%emt 0:05:51]} Kh8 {[%emt 0:06:40]} 19. Rad1 {[%emt 0:14:31]} Qg6 {[%emt 0:04:05]} 20. h4 {[%emt 0:03:25]} Qf5 {[%emt 0:09:10]} 21. g4 {[%emt 0:04:49]} Qf8 {[%emt 0:00:24]} 22. Kg2 {[%emt 0:02:29]} a5 {[%emt 0:03:08]} 23. Nd5 {[%emt 0:03:40]} Ne6 {[%emt 0:00:31]} 24. Qd2 {[%emt 0:00:33]} Ne5 {[%emt 0:01:03]} 1/2-1/2

[Event "SWE-ch Masters Elite 2018"]
[Site "Ronneby"]
[Date "2018.07.05"]
[Round "6"]
[White "Rydstrom, Tom"]
[Black "Landgren, Andreas"]
[Result "1/2-1/2"]
[ECO "C10"]
[WhiteElo "2307"]
[BlackElo "2278"]
[Annotator "NA"]
[PlyCount "88"]
[EventDate "2018.06.30"]
[EventType "tourn"]
[EventCountry "SWE"]
[SourceTitle "playchess.com"]
[Source "ChessBase"]
[SourceQuality "1"]
[TimeControl "40/5400+30:1800+30"]

{[%evp 8,63,37,30,33,33,30,24,23,29,31,9,21,39,13,-26,12,20,0,11,1,3,19,-37,-22,-43,-32,-37,-29,-48,0,-3,0,32767,0,-10,0,-9,0,32767,32767,32767,0,0,32767,32767,7,32767,64,64,53,55,55,53,68,56,58,89]} 1. e4 {[%emt 0:12:04]} e6 {[%emt 0:00:00]} 2. d4 {[%emt 0:00:04]} d5 {[%emt 0:00:00]} 3. Nc3 {[%emt 0:00:05]} dxe4 {[%emt 0:00:00]} 4. Nxe4 {[%emt 0:00:05]} Nd7 {[%emt 0:00:09]} 5. Bd3 {[%emt 0:00:18]} Ngf6 {[%emt 0:00:12]} 6. Qe2 {[%emt 0:00:06]} c5 {[%emt 0:01:27]} 7. Nxf6+ {[%emt 0:06:16]} Nxf6 {[%emt 0:00:25]} 8. dxc5 {[%emt 0:00:11]} Bxc5 {[%emt 0:00:12]} 9. Nf3 {[%emt 0:00:03]} O-O {[%emt 0:10:59]} 10. Bg5 {[%emt 0:00:40]} h6 {[%emt 0:05:56]} 11. Bd2 {[%emt 0:00:37]} e5 {[%emt 0:03:45] C10: French with 3 Nc3: Unusual Black 3rd moves and 3...dxe4} (11... Qb6 12. O-O-O Ng4 13. Rhf1 Nxf2 14. Rxf2 Bxf2 15. Rf1 Bd4 16. c3 Bf6 17. Ne5 Bxe5 18. Qxe5 Rd8 19. Rf3 {½-½ (60) Almasi,Z (2640)-Van Wely,L (2700) Monte Carlo 2001}) 12. O-O-O $1 {[%emt 0:09:05] LiveBook: 5 Games} e4 {[%emt 0:03:19]} 13. Bxe4 {[%emt 0:00:21]} Qe7 {[%emt 0:00:14]} 14. Rhe1 {[%emt 0:00:48]} Qe6 $146 {[%emt 0:00:52]} ({Predecessor:} 14... Qxe4 15. Qxe4 Nxe4 16. Rxe4 Bxf2 17. Bb4 Bf5 18. Re5 g6 19. Bxf8 Kxf8 {1-0 (34) Berelowitsch,A (2576)-Schilow,W (2410) Germany 2009}) 15. Kb1 {[%emt 0:04:11]} Nxe4 {[%emt 0:01:03]} 16. Qxe4 {[%emt 0:00:04]} Bxf2 {[%emt 0:00:23]} 17. Re2 {[%emt 0:00:28]} Qxe4 {[%emt 0:00:46]} 18. Rxe4 {[%emt 0:00:02]} Be6 {[%emt 0:00:25]} 19. Nd4 {[%emt 0:03:13]} Bxd4 {[%emt 0:04:04]} 20. Rxd4 {[%emt 0:03:07]} Rfd8 {[%emt 0:01:37]} 21. Bc3 {[%emt 0:01:01]} Rxd4 {[%emt 0:00:19]} 22. Rxd4 {[%emt 0:00:02]} f6 {[%emt 0:06:31]} 23. a4 {[%emt 0:02:21]} Kf7 {[%emt 0:01:50]} 24. b3 {[%emt 0:00:32]} Rc8 {[%emt 0:01:31]} 25. Kb2 {[%emt 0:00:05]} Ke8 {[%emt 0:04:31]} 26. Bb4 {[%emt 0:00:49]} Bf5 {[%emt 0:05:15]} 27. c4 {[%emt 0:00:13]} Rd8 {[%emt 0:01:11]} (27... Kf7 $11) 28. Rxd8+ {[%emt 0:00:48]} Kxd8 {[%emt 0:00:09]} 29. Bf8 {[%emt 0:00:30]} g5 {[%emt 0:00:45]} 30. Bxh6 {[%emt 0:01:26]} Ke7 {[%emt 0:00:25]} 31. Kc3 {[%emt 0:03:23]} Kf7 {[%emt 0:02:54]} 32. b4 $16 {[%emt 0:04:31]} Be4 {[%emt 0:03:41]} 33. g3 {[%emt 0:01:49]} a6 {[%emt 0:01:00]} 34. Kd4 {[%emt 0:00:11]} Bg2 {[%emt 0:03:39]} 35. Kc5 {[%emt 0:00:32]} Kg6 {[%emt 0:01:04]} 36. Bf8 {[%emt 0:00:05]} Kh5 {[%emt 0:00:44]} 37. Kb6 {[%emt 0:10:40]} Kg4 {[%emt 0:01:59]} 38. Bd6 {[%emt 0:04:08]} Kh3 {[%emt 0:04:39]} 39. b5 {[%emt 0:03:29]} axb5 {[%emt 0:00:24]} 40. cxb5 {[%emt 0:00:10]} Kxh2 {[%emt 0:01:26]} 41. Kc5 {[%emt 0:31:20]} Kh3 {[%emt 0:30:58]} 42. a5 {[%emt 0:00:31]} Kg4 {[%emt 0:00:29]} 43. a6 {[%emt 0:01:13]} bxa6 {[%emt 0:00:05]} 44. bxa6 {[%emt 0:00:08]} f5 {[%emt 0:00:07]} 1/2-1/2